Cogmind - Beta 11.1 @@@ ROGUE MODE // 2022.04.27 @ 10:29:08 Player: Demise Result: Destroyed by G-34 Mercenary with Small Laser Performance ------------- Evolutions (0) 0 Regions Visited (1) 200 Robots Destroyed (10) 50 Value Destroyed (166) 166 Prototype IDs (1) 20 Alien Tech Used (0) 0 Bonus (0) 0 TOTAL SCORE: 436 Bonus ------- None Cogmind --------- Core Integrity 0/250 Matter 228/300 Energy 38/100 System Corruption 1% Temperature Critical (676) Movement Core (100) Ox1 Location -10/Materials Parts ------- > --- POWER (1) -------- (None) > --- PROPULSION (2) --- (None) > --- UTILITY (2) ------ Structural Scanner > --- WEAPON (2) ------- Advanced Beam Cannon > --- INVENTORY (5) ---- Light Treads Improved Terrain Scanner Seismic Detector EM Pulse Gun EM Pulse Gun Peak State ------------ > --- POWER ------------ Ion Engine > --- PROPULSION ------- Light Treads Compact Wheel > --- UTILITY ---------- Small Storage Unit Improved Terrain Scanner > --- WEAPON ----------- Advanced Beam Cannon Advanced Beam Cannon > --- INVENTORY -------- Light Treads Wheel Structural Scanner Seismic Detector EM Pulse Gun EM Pulse Gun Advanced Beam Cannon Advanced Beam Cannon [Rating: 14] Favorites ----------- Power Ion Engine Engine Ion Engine Propulsion Compact Wheel Treads Light Treads Wheel Compact Wheel Utility Improved Terrain Scanner Device Improved Terrain Scanner Storage Small Storage Unit Processor Terrain Scan Processor Weapon EM Pulse Gun Energy Gun EM Pulse Gun Energy Cannon Advanced Beam Cannon Ballistic Gun Light Assault Rifle Build | -11 -10 ------- Run | Scr Mat Slots Evolved . | . . Power . | . . Propulsion . | . . Utility . | . . Weapon . | . . Parts Attached 14 | 7 7 Power 1 | 1 . Engine 1 | 1 . Core . | . . Reactor . | . . Propulsion 2 | 2 . Treads 1 | 1 . Leg . | . . Wheel 1 | 1 . Hover . | . . Flight . | . . Utility 5 | 2 3 Device 3 | 2 1 Storage 1 | . 1 Processor 1 | . 1 Hackware . | . . Protection . | . . Artifact . | . . Weapon 6 | 2 4 Energy Gun 3 | 2 1 Energy Cannon 2 | . 2 Ballistic Gun 1 | . 1 Ballistic Cannon . | . . Launcher . | . . Special Weapon . | . . Impact Weapon . | . . Slashing Weapon . | . . Piercing Weapon . | . . Special Melee Weapon . | . . Unidentified Prototypes 1 | . 1 Parts Lost 5 | . 5 Power 1 | . 1 Propulsion 2 | . 2 Utility 1 | . 1 Weapon 1 | . 1 Highest Loss Streak 5 | . 5 To Critical Strikes . | . . Average Slot Usage (%) 95 | . 95 Engine 12 | . 12 Treads 13 | . 13 Wheel 13 | . 13 Device 15 | . 15 Storage 8 | . 8 Processor 3 | . 3 Energy Gun 12 | . 12 Energy Cannon 13 | . 13 Naked Turns . | . . Heaviest Build 19 | 11 19 Greatest Support 20 | 20 16 Greatest Overweight (x) 1 | . 1 Average Overweight (x) . | . . Largest Inventory Capacity 8 | 5 8 Average Capacity 6 | 5 6 Most Carried 8 | 3 8 Average Carried 5 | 2 6 Final Capacity 5 | 5 5 Final Carried 5 | 3 5 Class Distribution -------------------- 100% | Mutant Dominant Class ---------------- Mutant | -10/Materials Resources | -11 -10 ----------- Run | Scr Mat Matter Collected 270 | 270 . Remotely . | . . Salvage Created 338 | 169 169 Parts 21 | 11 10 Haulers Intercepted . | . . Recyclers Shooed . | . . Parts Field Recycled . | . . Retrieved Matter . | . . Parts Self-Destructed . | . . Prevented . | . . Kills | -11 -10 ------- Run | Scr Mat Combat Hostiles Destroyed 4 | . 4 Guns 1 | . 1 Cannons 3 | . 3 Classes Destroyed 4 | 2 2 Tunneler 5 | 5 . Recycler 1 | 1 . Swarmer 1 | . 1 Grunt 3 | . 3 Best Kill Streak 6 | 6 4 Combat Bots Only 4 | . 4 Max Kills in Single Turn 2 | 2 1 Gunslinging . | . . Exploded . | . . Melee . | . . Uniques/NPCs Destroyed . | . . Combat | -11 -10 -------- Run | Scr Mat Damage Taken 817 | . 817 Core 252 | . 252 Absorbed by Shields . | . . Core Remaining (%) 100 | 100 . Volleys Fired 26 | 9 17 Largest 2 | 2 2 Hottest 136 | 80 136 Shots Fired 46 | 18 28 Gun 22 | 18 4 Cannon 24 | . 24 Launcher . | . . Special . | . . Kinetic 4 | . 4 Thermal 24 | . 24 Explosive . | . . Electromagnetic 18 | 18 . Robot Hit Streak 4 | 2 4 Robot Miss Streak 8 | 1 8 Penetration Max . | . . Secondary Targets . | . . Shots Hit Robots 24 | 11 13 Core Hits 14 | 7 7 Critical Kills . | . . Critical Parts Destroyed . | . . Critical Strikes . | . . Melee Attacks . | . . Impact . | . . Slashing . | . . Piercing . | . . Sneak Attacks . | . . Combat Hostiles . | . . Follow-up Attacks . | . . Damage Inflicted 534 | 229 305 Guns 193 | 160 33 Cannons 268 | . 268 Explosions 69 | 69 . Melee . | . . Ramming 4 | . 4 Kinetic 33 | . 33 Thermal 337 | 69 268 Explosive . | . . Electromagnetic 160 | 160 . Impact . | . . Slashing . | . . Piercing . | . . Highest Corruption 1 | . 1 Average Corruption 1 | . 1 Corruption Purged . | . . Corruption Blocked . | . . Overload Shots . | . . Overflow Damage . | . . Projectiles . | . . Explosions . | . . Melee . | . . Knockbacks . | . . Impact . | . . Kinetic . | . . Secondary . | . . Self-Inflicted Damage 2 | . 2 Shots . | . . Rammed 1 | . 1 Targets Rammed 1 | . 1 Kicked . | . . Crushed . | . . Highest Temperature 670 | 72 670 Average Temperature 200 | 33 301 Received Heat Transfer 246 | . 246 Effects 12 | . 12 Shutdowns 1 | . 1 Energy Bleed 4 | . 4 Interference 1 | . 1 Matter Decay 1 | . 1 Damage (minor) 2 | . 2 Damage (major) 2 | . 2 Damage (core) 1 | . 1 Siege Activations . | . . Robots Corrupted . | . . Combat Hostiles . | . . Parts Fried 1 | 1 . Impact Corruptions . | . . Robots Melted . | . . Combat Hostiles . | . . Parts Melted 1 | . 1 Heat Transferred 531 | 50 481 Parts Sabotaged . | . . Parts Stolen . | . . Parts Stripped . | . . Power Chain Reactions 2 | 2 . Missiles Intercepted . | . . Alert | -11 -10 ------- Run | Scr Mat Peak Influence 103 | 30 103 Initial 19 | . 19 Average 28 | 11 36 Maximum Alert Level . | . . Low Security (%) 100 | 100 100 Level 1 . | . . Level 2 . | . . Level 3 . | . . Level 4 . | . . Level 5 . | . . High Security . | . . Max Security . | . . Squads Dispatched 1 | . 1 Investigation 1 | . 1 Extermination . | . . Reinforcement . | . . Assault . | . . Garrison . | . . Intercept . | . . Searches Triggered . | . . Construction Impeded . | . . Haulers Reinforced . | . . Active Scanning Responses . | . . Cargo Convoy Interrupts . | . . Stealth | -11 -10 --------- Run | Scr Mat Distress Signals 1 | . 1 Communications Jammed . | . . Distress Signals . | . . Times Spotted 7 | . 7 Peak Tracking Total 8 | . 8 Tactical Retreats . | . . Traps | -11 -10 ------- Run | Scr Mat Traps Triggered 1 | . 1 Indirectly . | . . Trap Hack Attempts . | . . Triggered . | . . Disarmed . | . . Reprogrammed . | . . Reused . | . . Traps Extracted . | . . Installed . | . . Triggered . | . . Machines | -11 -10 ---------- Run | Scr Mat Machines Disabled . | . . Max in Single Turn . | . . Machines Sabotaged . | . . Garrisons Compromised . | . . Overloaded Fab Kills . | . . Hacking | -11 -10 --------- Run | Scr Mat Machines Accessed 1 | . 1 Terminals 1 | . 1 Fabricators . | . . Repair Stations . | . . Recycling Units . | . . Scanalyzers . | . . Garrison Access . | . . Total Hacks 4 | . 4 Successful 3 | . 3 Failed 1 | . 1 Catastrophic . | . . Database Lockouts . | . . Manual 4 | . 4 Terminals 4 | . 4 Fabricators . | . . Repair Stations . | . . Recycling Units . | . . Scanalyzers . | . . Garrison Access . | . . Terminal Hacks 1 | . 1 Terminal Index 1 | . 1 Fabricator Hacks . | . . Repair Station Hacks . | . . Recycling Unit Hacks . | . . Scanalyzer . | . . Garrison Access Hacks . | . . Unauthorized Hacks 2 | . 2 Terminals 2 | . 2 Botnet 1 | . 1 Operators 1 | . 1 Fabricators . | . . Repair Stations . | . . Recycling Units . | . . Scanalyzers . | . . Garrison Access . | . . Data Cores Recovered . | . . Used . | . . Hacking Detections 1 | . 1 Full Trace Events 1 | . 1 Feedback Events . | . . Feedback Blocked . | . . Robot Schematics Acquired . | . . Robots Built . | . . Authchips . | . . Time . | . . Total Robot Build Rating . | . . Part Schematics Acquired . | . . Parts Built . | . . Authchips . | . . Time . | . . Total Part Build Rating . | . . Parts Repaired . | . . Time . | . . Parts Recycled . | . . Recycled Matter . | . . Retrieved Matter . | . . Retrieved Components . | . . Parts Scanalyzed . | . . Part Schematics Acquired . | . . Parts Damaged . | . . Bothacking | -11 -10 ------------ Run | Scr Mat Used RIF Installer . | . . Robots Hacked . | . . Non-combat . | . . Combat . | . . Robot Hacks Applied . | . . Relay Couplers Released . | . . Fabnet Peak Effective % . | . . Robots Rewired . | . . Allies Hacked . | . . Hacks Repelled . | . . Allies | -11 -10 -------- Run | Scr Mat Total Allies . | . . Largest Group . | . . Highest-Rated Group . | . . Highest-Rated Ally . | . . Total Orders . | . . Ally Attacks . | . . Total Damage . | . . Kills . | . . Allies Corrupted . | . . Allies Melted . | . . Intel | -11 -10 ------- Run | Scr Mat Robot Analysis Total . | . . Derelict Logs Recovered . | . . Drone Launches . | . . Drone Recoveries . | . . Exploration | -11 -10 ------------- Run | Scr Mat Turns Passed 260 | 79 181 Spaces Moved 107 | 38 69 Core 2 | 2 . Treads 3 | 3 . Legs . | . . Wheels 102 | 33 69 Hover . | . . Flight . | . . Fastest Speed 50 | 50 100 Average Speed 106 | 102 108 Slowest Speed 160 | 160 115 Overloaded Moves . | . . Propulsion Burnouts . | . . Robots Hopped . | . . Cave-ins Triggered . | . . Exploration Rate (%) 10 | 3 17 Regions Visited 1 Branch Regions . Pre-discovered Areas . | . . Known Exits Taken . | . . Unknown Exits Taken 1 | 1 . Scrap Searched . | . . Spaces Dug . | . . Terrain Destroyed 6 | 6 . Melee . | . . Projectile . | . . AOE 6 | 6 . Terrain Rammed . | . . Walls Destroyed . | . . Machines Disabled . | . . Actions | -11 -10 --------- Run | Scr Mat Total 203 | 56 147 Wait 44 | . 44 Move 106 | 37 69 Hop . | . . Pick Up 7 | 3 4 Fast Attach 11 | 7 4 Attach 1 | . 1 Detach 3 | . 3 Swap 2 | . 2 Drop 2 | . 2 Fire 26 | 9 17 Melee . | . . Ram 1 | . 1 Kick . | . . Crush . | . . Escape Stasis . | . . Rewire . | . . Trap . | . . Miscellaneous . | . . Route ------- -11/Scrapyard -10/Materials (discovered 1 exit: [*Min]) History --------- Turn | Location | Event 12 | -11/Scrapyard | Discovered new exit (range 16) 80 | -11/Scrapyard | Entered Materials 204 | -10/Materials | Discovered new exit (range 8) 248 | -10/Materials | Core integrity fell below 50% 256 | -10/Materials | Core integrity fell below 20% 261 | -10/Materials | Destroyed by G-34 Mercenary with Small Laser Last Messages --------------- 00244_ Imp. Heat Sink melted. 00244_ G-47 Trooper destroyed. 00248_ Lgt. Assault Rifle destroyed. 00249_ R-06 Scavenger collects Aluminum Leg. 00250_ Overheating: Structural Scanner damaged (-8). 00251_ Com. Wheel destroyed. 00251_ G-34 Mercenary destroyed. 00252_ Overheating: Structural Scanner damaged (-8). 00253_ Overheating: Lgt. Treads damaged (-9). 00253_ Overheating: Sml. Storage Unit damaged (-80). 00253_ R-06 Scavenger collects Aluminum Leg. 00254_ Overheating: Energy bleed (-16). 00255_ Overheating: Matter decay (-26). 00255_ Lgt. Treads destroyed. 00256_ Overheating: Core damaged (-45). 00257_ Overheating: Energy bleed (-11). 00259_ Overheating: Energy bleed (-8). 00259_ G-34 Mercenary destroyed. 00260_ Overheating: Energy bleed (-6). 00260_ Sml. Storage Unit destroyed. Map ----- +----------------------------------------------------+ | | | | | | | | | | | | | | | ????????????????#?#?#####?#???# | | ???????????#?###????????????#?? | | ????????????#?#?#?????#?#?#?#?# | | ???????????###?####??#?#?##???? | | ???#############??#????#?##???? | | ???#######################????? | | ???## ###?### | | ???## ################# #??## | | ???## ###########?##### ##### " | | ???## ###???"?????#!! + " | | ???## #####??? "###! #+##### | | ???## ####"" ""## # ## | | ???##^ ^+ ## # !! ## | | ???##^^ # < ##]] #!!! ## | | ??### # ???? ##]] #!! ## | | ???## # ??? ###### !## | | ???## ==!## ? #??#??######### | | ???##%%[g### ###??? ? ? ??# | | ?####]@s= ###?## "?" ???# | | #####s## # "?"??? # | | # %## + ????? ?# | | #""" ## # ??? ?"# | | #""" ## !! #????????"# | | #""" ## ! #???? ???? | | #""" # ?? ?? ? ?# | | #""" + ? ?#?##????#? | | ? # ?#??##??### | | ?? ###+### ????? ?? ???? | | ?? ## # ??? ????? ??? | | ?? ##???????? ?????????????? | | ?? ##????????????? ????????? | | ? ##??????????????????????? | | ?#######??????????????????????? | | ?#######??????????????????????? | | ??????????????????????????????? | | ??????????????????????????????? | | ??????????????????????????????? | | ??????????????????????????????? | | ??????????????????????????????? | | ??????????????????????????????? | | ??????????????????????????????? | | ??????????????????????????????? | | ??????????????????????????????? | +----------------------------------------------------+ Best States ------------- Heat Dissipation 25 Energy Generation 10 Energy Capacity 250 Matter Stores 300 Matter Capacity 300 Sight Range 16 Terrain Scan Range 16 Terrain Scan Density 85 Evasion (%) 40 Recoil Reduction 1 Item Schematics ----------------- None Robot Schematics ------------------ None Fabricated ------------ Nothing Alien Tech Used ----------------- None Achievements -------------- None Challenges ------------ None Game ------ Seed SniperProtonWheel Manual? 0 Play Time 00:06:58 Cumulative 473.2 hours Start 2022.04.27 @ 10:24:44 End 2022.04.27 @ 10:29:08 Sessions 1 Manual Loads 0 Difficulty Rogue Special Mode None Game No. 391 Rogue 391 Adventurer 0 Explorer 0 Win Type - Total 3 Types 2/0/0/1/0/0/0/0/0 Lore% 68 Gallery% 77 Achievement% 66 Wizard Run 0 Options --------- ASCII 0 Keyboard 1 Movement Numpad Keybinds 0 Fullscreen 1 Font 12/Terminus Map View 83x54 Tactical HUD 1 Map Filters NONE Filters NONE Steam 1 RUN: f9b620e8-9b04-45e0-95db-f9a07a1e6e30